fUSD/lending_fUSD_20260612
["ID","MTS","AMOUNT","RATE_DAILY","PERIOD"]
[424914631,1781268655000,-6014.34428283,0.000299,2]
[424914632,1781268655000,-888.42728489,0.000299,2]
[424914633,1781268655000,-6399.97756274,0.000299,2]
[424914627,1781268655000,-500.0,0.000299,60]
[424914625,1781268655000,-57196.56077127,0.000299,2]
[424914630,1781268655000,-150.0,0.000299,2]
[424914623,1781268655000,-1000.0,0.0002987,2]
[424914659,1781268655000,-20281.28614908,0.0003,2]
[424914645,1781268655000,-6399.97756269,0.000299,2]
[424914629,1781268655000,-10331.9838005,0.000299,2]
[424914628,1781268655000,-150.0,0.000299,2]
[424914641,1781268655000,-6399.97756269,0.000299,2]
[424914635,1781268655000,-6399.97756269,0.000299,2]
[424914636,1781268655000,-6399.97756269,0.000299,2]
[424914638,1781268655000,-6399.97756269,0.000299,2]
[424914637,1781268655000,-6399.97756269,0.000299,2]
[424914644,1781268655000,-6399.97756269,0.000299,2]
[424914639,1781268655000,-6399.97756269,0.000299,2]
[424914640,1781268655000,-6399.97756269,0.000299,2]
[424914624,1781268655000,-2544.04681793,0.00029898,4]
[424914669,1781268655000,-559.69471359,0.0003,60]
[424914626,1781268655000,-500.0,0.000299,60]
[424914671,1781268655000,-1000.0,0.0003,2]
[424914695,1781268655000,-22500.0,0.0003,2]
[424914697,1781268655000,-15000.0,0.0003,2]
[424914701,1781268655000,-3000.0,0.0003,3]
[424914699,1781268655000,-12500.0,0.0003,2]
[424914694,1781268655000,-2500.0,0.0003,2]
[424914696,1781268655000,-25000.0,0.0003,2]
[424914698,1781268655000,-200.0,0.0003,2]
[424914700,1781268655000,-2500.0,0.0003,2]
[424914704,1781268655000,-587.97,0.0003,2]
[424914693,1781268655000,-10000.0,0.0003,2]
[424914703,1781268655000,-22500.0,0.0003,2]
[424914706,1781268655000,-22500.0,0.0003,2]
[424914711,1781268655000,-7464.12068309,0.00030125,2]
[424914707,1781268655000,-179.97120455,0.00030014,2]
[424914710,1781268655000,-12500.0,0.00030125,2]
[424914709,1781268655000,-22500.0,0.00030125,2]
[424914708,1781268655000,-1770.42,0.00030058,7]
[424914712,1781268655000,-295.607039,0.00027794,30]
[424914715,1781268655000,-74.62009572,0.00027855,7]
[424914714,1781268655000,-318.72,0.00027824,2]
[424914705,1781268655000,-25000.0,0.0003,2]
[424914691,1781268655000,-25000.0,0.0003,2]
[424914713,1781268655000,-23.112961,0.00027794,30]
[424914692,1781268655000,-22500.0,0.0003,2]
[424914702,1781268655000,-22500.0,0.0003,2]
[424914681,1781268655000,-200.0,0.0003,2]
[424914673,1781268655000,-199.8719284,0.0003,2]
[424914670,1781268655000,-2831.59005643,0.0003,120]
[424914672,1781268655000,-6258.56460794,0.0003,15]
[424914674,1781268655000,-1126.36892645,0.0003,2]
[424914675,1781268655000,-1854.58551056,0.0003,2]
[424914679,1781268655000,-1000.0,0.0003,120]
[424914678,1781268655000,-1596.39502617,0.0003,2]
[424914677,1781268655000,-166.2658812,0.0003,2]
[424914668,1781268655000,-1000.0,0.0003,120]
[424914680,1781268655000,-650.0,0.0003,2]
[424914683,1781268655000,-2075.41,0.0003,2]
[424914682,1781268655000,-200.0,0.0003,2]
[424914684,1781268655000,-2500.0,0.0003,2]
[424914687,1781268655000,-7281.73,0.0003,2]
[424914685,1781268655000,-2820.12,0.0003,2]
[424914690,1781268655000,-200.0,0.0003,2]
[424914676,1781268655000,-1000.0,0.0003,2]
[424914686,1781268655000,-326.01,0.0003,2]
[424914688,1781268655000,-2524.2,0.0003,2]
[424914689,1781268655000,-1929.76,0.0003,2]
[424914724,1781268656000,-318.72,0.00028038,7]
[424914723,1781268656000,-318.72,0.00028007,2]
[424914721,1781268656000,-821.0,0.0002594,10]
[424914726,1781268656000,-16.76454803,0.00028068,30]
[424914716,1781268656000,-244.09990428,0.00027855,7]
[424914720,1781268656000,-9565.95860449,0.00030125,2]
[424914718,1781268656000,-318.72,0.00027916,2]
[424914728,1781268656000,-318.84,0.0002813,7]
[424914719,1781268656000,-318.72,0.00027946,7]
[424914717,1781268656000,-318.72,0.00027885,30]
[424914722,1781268656000,-318.72,0.00027977,30]
[424914727,1781268656000,-318.72,0.00028099,2]
[424914725,1781268656000,-301.95545197,0.00028068,30]
[424914729,1781268656000,-5469.92071242,0.00030125,2]
[424914734,1781268656000,-5738.37926298,0.0003013,7]
[424914740,1781268656000,-788.47456397,0.0003013,7]
[424914741,1781268656000,-77.62023603,0.0003013,2]
[424914739,1781268656000,-396.58445928,0.0003013,7]
[424914738,1781268656000,-278.53459995,0.0003013,7]
[424914732,1781268656000,-4215.58164842,0.0003013,7]
[424914737,1781268656000,-585.17472321,0.0003013,7]
[424914735,1781268656000,-500.0,0.0003013,7]
[424914731,1781268656000,-1920.54064607,0.0003013,2]
[424914730,1781268656000,-20922.19941341,0.0003013,7]
[424914736,1781268656000,-1331.4335366,0.0003013,7]
[424914733,1781268656000,-30066.61557151,0.0003013,2]
[424914742,1781268702000,156.5325228,8.916e-05,7]
[424914743,1781268704000,234.79878424,9.44e-05,7]
[424914744,1781268745000,-197.06676708,9.586e-05,2]
[424914745,1781268801000,-424.09421268,9.585e-05,2]
[424914746,1781268819000,-323.692474,9.585e-05,2]
[424914747,1781268839000,-323.692474,9.585e-05,2]
[424914748,1781268859000,-250.69712946,9.585e-05,2]
[424914749,1781268880000,-250.69712946,9.585e-05,2]
[424914751,1781268899000,-287.59506586,9.585e-05,2]
[424914752,1781268918000,-287.59506586,9.584e-05,2]
[424914753,1781268935000,-300.0,9.583e-05,2]
[424914754,1781268989000,-149.37668439,9.584e-05,2]
[424914760,1781269182000,-153.55989823,8.783e-05,2]
[424914761,1781269237000,-179.03853325,8.783e-05,2]
[424914762,1781269263000,150.0,8.519e-05,2]
[424914763,1781269290000,-494.29395229,8.783e-05,2]
[424914764,1781269343000,-150.0,8.783e-05,2]
[424914765,1781269397000,-962.386408,8.783e-05,2]
[424914766,1781269417000,-585.97716385,8.783e-05,2]
[424914767,1781269420000,236.03139935,9.774e-05,7]
[424914768,1781269471000,-160.0,8.787e-05,2]
[424914769,1781269524000,-300.0,8.827e-05,2]
[424914772,1781269541000,-285.39480497,9.04e-05,2]
[424914770,1781269541000,-300.0,8.94e-05,2]
[424914771,1781269541000,-150.0,9.028e-05,2]
[424914773,1781269577000,-500.0,9.04e-05,2]
[424914774,1781269597000,-500.0,9.04e-05,2]
[424914778,1781269636000,-41.64475067,9.297e-05,2]
[424914776,1781269636000,-150.0,9.118e-05,2]
[424914777,1781269636000,-150.0,9.207e-05,2]
[424914775,1781269636000,-619.3176563,9.04e-05,2]
[424914780,1781269751000,-462.85122495,9.585e-05,2]
[424914779,1781269751000,-197.2,9.365e-05,2]
[424914781,1781269772000,-87.70819359,9.585e-05,2]
[424914785,1781269773000,-439.83288144,0.00010478,2]
[424914784,1781269773000,-250.0,0.00010302,2]
[424914783,1781269773000,-288.44686607,0.00010087,2]
[424914782,1781269773000,-300.54830225,9.944e-05,2]
[424914787,1781269774000,58.77849775,9.585e-05,2]
[424914786,1781269774000,217.29352935,9.585e-05,2]
[424914788,1781269825000,-500.0,9.585e-05,2]
[424914909,1781269845000,-500.0,9.585e-05,2]
[424914911,1781269845000,-1259.62792815,0.00010478,2]
[424914910,1781269845000,-271.3847049,9.585e-05,2]
[424914915,1781269845000,-1487.54679352,0.00011176,2]
[424914914,1781269845000,-365.54897488,0.00011168,2]
[424914912,1781269845000,-300.0,0.00010543,2]
[424914916,1781269845000,-888.9866072,0.00011176,2]
[424914918,1781269845000,-895.41,0.00011176,2]
[424914913,1781269845000,-271.8318604,0.000107,2]
[424914919,1781269845000,-951.59844034,0.00011176,2]
[424914920,1781269845000,-443.65147059,0.00011176,2]
[424914922,1781269845000,-300.0,0.00011177,2]
[424914923,1781269845000,-1153.07450446,0.00011177,3]
[424914921,1781269845000,-576.69371371,0.00011176,2]
[424914917,1781269845000,-1237.08734021,0.00011176,2]
[424914953,1781269846000,-500.0,0.00011277,2]
[424914955,1781269846000,-500.0,0.00011277,2]
[424914958,1781269846000,-500.0,0.00011277,2]
[424914960,1781269846000,-500.0,0.00011277,2]
[424914962,1781269846000,-500.0,0.00011277,2]
[424914964,1781269846000,-392.55852152,0.00011277,2]
[424914966,1781269846000,-500.0,0.00011277,2]
[424914971,1781269846000,-500.0,0.00011277,2]
[424914974,1781269846000,-500.0,0.00011277,2]
[424914977,1781269846000,-500.0,0.00011277,2]
[424914968,1781269846000,-500.0,0.00011277,2]
[424914976,1781269846000,-500.0,0.00011277,2]
[424914979,1781269846000,-500.0,0.00011277,2]
[424914993,1781269846000,-500.0,0.00011277,2]
[424914990,1781269846000,-500.0,0.00011277,2]
[424914997,1781269846000,-500.0,0.00011277,2]
[424914995,1781269846000,-500.0,0.00011277,2]
[424915001,1781269846000,-500.0,0.00011277,2]
[424914951,1781269846000,-500.0,0.00011277,2]
[424914970,1781269846000,-500.0,0.00011277,2]
[424914936,1781269846000,-500.0,0.00011277,2]
[424914925,1781269846000,-137069.36419458,0.00011178,2]
[424914941,1781269846000,-631.95944633,0.00011277,2]
[424914927,1781269846000,-207736.87858698,0.00011178,2]
[424914926,1781269846000,-140367.63386062,0.00011178,2]
[424914924,1781269846000,-205911.59620028,0.00011178,2]
[424914928,1781269846000,-1254.41808677,0.00011178,2]
[424914929,1781269846000,-2403.61481478,0.00011178,2]
[424914932,1781269846000,-150.0,0.00011276,2]
[424914988,1781269846000,-500.0,0.00011277,2]
[424914930,1781269846000,-4461.06857084,0.00011178,2]
[424914931,1781269846000,-1800795.42568515,0.00011178,2]
[424914933,1781269846000,-202.6994181,0.00011277,2]
[424914935,1781269846000,-500.0,0.00011277,2]
[424914949,1781269846000,-500.0,0.00011277,2]
[424914945,1781269846000,-500.0,0.00011277,2]
[424914947,1781269846000,-500.0,0.00011277,2]
[424914937,1781269846000,-500.0,0.00011277,2]
[424914943,1781269846000,-591.56740802,0.00011277,2]
[424914939,1781269846000,-500.0,0.00011277,2]
[424914938,1781269846000,-616.27963198,0.00011277,2]
[424914940,1781269846000,-213.37136247,0.00011277,2]
[424914934,1781269846000,-267.98515204,0.00011277,2]
[424914981,1781269846000,-500.0,0.00011277,2]
[424915045,1781269846000,-500.0,0.00011277,2]
[424914999,1781269846000,-500.0,0.00011277,2]
[424915031,1781269846000,-500.0,0.00011277,2]
[424915030,1781269846000,-500.0,0.00011277,2]
[424915032,1781269846000,-500.0,0.00011277,2]
[424915035,1781269846000,-500.0,0.00011277,2]
[424915038,1781269846000,-500.0,0.00011277,2]
[424915037,1781269846000,-500.0,0.00011277,2]
[424915039,1781269846000,-500.0,0.00011277,2]
[424915042,1781269846000,-500.0,0.00011277,2]
[424915041,1781269846000,-500.0,0.00011277,2]
[424915043,1781269846000,-500.0,0.00011277,2]
[424915040,1781269846000,-500.0,0.00011277,2]
[424915044,1781269846000,-500.0,0.00011277,2]
[424915047,1781269846000,-500.0,0.00011277,2]
[424915049,1781269846000,-500.0,0.00011277,2]
[424915046,1781269846000,-500.0,0.00011277,2]
[424915048,1781269846000,-500.0,0.00011277,2]
[424915050,1781269846000,-500.0,0.00011277,2]
[424915051,1781269846000,-500.0,0.00011277,2]
[424914983,1781269846000,-500.0,0.00011277,2]
[424915033,1781269846000,-500.0,0.00011277,2]
[424915029,1781269846000,-500.0,0.00011277,2]
[424915036,1781269846000,-500.0,0.00011277,2]
[424915028,1781269846000,-500.0,0.00011277,2]
[424914986,1781269846000,-500.0,0.00011277,2]
[424915034,1781269846000,-500.0,0.00011277,2]
[424914984,1781269846000,-500.0,0.00011277,2]
[424915003,1781269846000,-500.0,0.00011277,2]
[424915007,1781269846000,-500.0,0.00011277,2]
[424915015,1781269846000,-500.0,0.00011277,2]
[424915013,1781269846000,-500.0,0.00011277,2]
[424915005,1781269846000,-500.0,0.00011277,2]
[424915010,1781269846000,-500.0,0.00011277,2]
[424915018,1781269846000,-500.0,0.00011277,2]
[424915019,1781269846000,-500.0,0.00011277,2]
[424915020,1781269846000,-500.0,0.00011277,2]
[424915021,1781269846000,-500.0,0.00011277,2]
[424915022,1781269846000,-500.0,0.00011277,2]
[424915023,1781269846000,-500.0,0.00011277,2]
[424915024,1781269846000,-500.0,0.00011277,2]
[424915025,1781269846000,-500.0,0.00011277,2]
[424915017,1781269846000,-500.0,0.00011277,2]
[424915026,1781269846000,-500.0,0.00011277,2]
[424915027,1781269846000,-500.0,0.00011277,2]
[424915075,1781269847000,-572.15,0.0001195,2]
[424915088,1781269847000,-612.75,0.00012148,2]
[424915085,1781269847000,-774.41,0.00012125,2]
[424915094,1781269847000,-255.0,0.00012336,2]
[424915093,1781269847000,-175.68,0.00012329,2]
[424915082,1781269847000,-1853.35,0.00012087,2]
[424915083,1781269847000,-329.31,0.00012106,2]
[424915098,1781269847000,-166.66,0.00012495,2]
[424915086,1781269847000,-1000.0,0.00012129,2]
[424915084,1781269847000,-2928.26,0.0001212,2]
[424915087,1781269847000,-264.28,0.00012147,2]
[424915102,1781269847000,-150.0,0.00012704,2]
[424915089,1781269847000,-6480.97436556,0.0001224,2]
[424915091,1781269847000,-166.66,0.00012248,2]
[424915092,1781269847000,-385.37,0.00012287,2]
[424915096,1781269847000,-150.0,0.00012391,2]
[424915105,1781269847000,-166.66,0.0001299,2]
[424915095,1781269847000,-250.0,0.00012374,2]
[424915097,1781269847000,-1807.77,0.00012432,2]
[424915104,1781269847000,-6480.97436556,0.00012772,2]
[424915100,1781269847000,-151.0,0.00012612,2]
[424915101,1781269847000,-166.66,0.00012701,2]
[424915072,1781269847000,-6480.97436556,0.00011708,2]
[424915090,1781269847000,-160.04,0.00012243,2]
[424915076,1781269847000,-3904.23039413,0.00011951,2]
[424915054,1781269847000,-500.0,0.00011277,2]
[424915073,1781269847000,-166.66,0.00011753,2]
[424915055,1781269847000,-500.0,0.00011277,2]
[424915056,1781269847000,-500.0,0.00011277,2]
[424915057,1781269847000,-500.0,0.00011277,2]
[424915052,1781269847000,-500.0,0.00011277,2]
[424915053,1781269847000,-500.0,0.00011277,2]
[424915059,1781269847000,-500.0,0.00011277,2]
[424915058,1781269847000,-500.0,0.00011277,2]
[424915062,1781269847000,-611.70993356,0.00011277,2]
[424915067,1781269847000,-611.70993356,0.00011277,2]
[424915060,1781269847000,-500.0,0.00011277,2]
[424915064,1781269847000,-611.70993356,0.00011277,2]
[424915078,1781269847000,-18176.28797004,0.00011951,2]
[424915069,1781269847000,-200.0,0.00011303,2]
[424915063,1781269847000,-611.70993356,0.00011277,2]
[424915065,1781269847000,-611.70993356,0.00011277,2]
[424915068,1781269847000,-611.70993356,0.00011277,2]
[424915066,1781269847000,-611.70993356,0.00011277,2]
[424915081,1781269847000,-166.66,0.00012,2]
[424915071,1781269847000,-258.78545286,0.000114,2]
[424915080,1781269847000,-36789.8949,0.00011951,2]
[424915077,1781269847000,-10303.32578108,0.00011951,2]
[424915070,1781269847000,-1735.2085476,0.0001132,2]
[424915079,1781269847000,-27190.6397508,0.00011951,2]
[424915074,1781269847000,-186.72,0.00011948,2]
[424915061,1781269847000,-611.70993356,0.00011277,2]
[424915106,1781269847000,-1601.13316532,0.00013,2]
[424915125,1781269847000,-500.0,0.00013425,2]
[424915099,1781269847000,-254.96217143,0.00012575,2]
[424915140,1781269847000,-500.0,0.00013425,2]
[424915133,1781269847000,-500.0,0.00013425,2]
[424915134,1781269847000,-150.0,0.00013425,2]
[424915135,1781269847000,-500.0,0.00013425,2]
[424915139,1781269847000,-500.0,0.00013425,2]
[424915137,1781269847000,-250.0,0.00013425,2]
[424915141,1781269847000,-500.0,0.00013425,2]
[424915144,1781269847000,-1000.0,0.000135,2]
[424915145,1781269847000,-500.0,0.0001363,2]
[424915143,1781269847000,-433.0,0.00013498,2]
[424915147,1781269847000,-500.0,0.00013698,2]
[424915146,1781269847000,-612.75,0.00013666,2]
[424915151,1781269847000,-500.0,0.00013698,2]
[424915152,1781269847000,-500.0,0.00013698,2]
[424915149,1781269847000,-500.0,0.00013698,2]
[424915150,1781269847000,-500.0,0.00013698,2]
[424915153,1781269847000,-500.0,0.00013698,2]
[424915148,1781269847000,-500.0,0.00013698,2]
[424915156,1781269847000,-500.0,0.00013698,2]
[424915154,1781269847000,-500.0,0.00013698,2]
[424915158,1781269847000,-500.0,0.00013698,2]
[424915155,1781269847000,-500.0,0.00013698,2]
[424915157,1781269847000,-500.0,0.00013698,2]
[424915142,1781269847000,-305.54732619,0.00013425,2]
[424915136,1781269847000,-150.0,0.00013425,2]
[424915103,1781269847000,-166.66,0.00012743,2]
[424915131,1781269847000,-150.0,0.00013425,2]
[424915138,1781269847000,-500.0,0.00013425,2]
[424915108,1781269847000,-321.06,0.00013306,2]
[424915118,1781269847000,-500.0,0.00013425,2]
[424915111,1781269847000,-150.0,0.00013425,2]
[424915112,1781269847000,-150.0,0.00013425,2]
[424915109,1781269847000,-150.0,0.00013425,2]
[424915110,1781269847000,-150.0,0.00013425,2]
[424915107,1781269847000,-163.0,0.00013247,2]
[424915116,1781269847000,-200.0,0.00013425,2]
[424915117,1781269847000,-250.0,0.00013425,2]
[424915114,1781269847000,-150.0,0.00013425,2]
[424915115,1781269847000,-150.0,0.00013425,2]
[424915113,1781269847000,-150.0,0.00013425,2]
[424915120,1781269847000,-500.0,0.00013425,2]
[424915128,1781269847000,-500.0,0.00013425,2]
[424915132,1781269847000,-532.61682043,0.00013425,2]
[424915127,1781269847000,-150.0,0.00013425,2]
[424915124,1781269847000,-150.0,0.00013425,2]
[424915122,1781269847000,-500.0,0.00013425,2]
[424915126,1781269847000,-177.42306754,0.00013425,2]
[424915129,1781269847000,-500.0,0.00013425,2]
[424915119,1781269847000,-500.0,0.00013425,2]
[424915130,1781269847000,-500.0,0.00013425,2]
[424915123,1781269847000,-500.0,0.00013425,2]
[424915121,1781269847000,-500.0,0.00013425,2]
[424915177,1781269848000,-692.17,0.00013698,2]
[424915183,1781269848000,-500.0,0.00013699,2]
[424915182,1781269848000,-500.0,0.00013699,2]
[424915185,1781269848000,-500.0,0.00013699,2]
[424915181,1781269848000,-500.0,0.00013699,2]
[424915179,1781269848000,-692.17,0.00013698,2]
[424915180,1781269848000,-200.0,0.00013699,2]
[424915197,1781269848000,-500.0,0.00013699,2]
[424915187,1781269848000,-500.0,0.00013699,2]
[424915189,1781269848000,-500.0,0.00013699,2]
[424915191,1781269848000,-500.0,0.00013699,2]
[424915192,1781269848000,-500.0,0.00013699,2]
[424915193,1781269848000,-500.0,0.00013699,2]
[424915196,1781269848000,-500.0,0.00013699,2]
[424915188,1781269848000,-500.0,0.00013699,2]
[424915186,1781269848000,-500.0,0.00013699,2]
[424915178,1781269848000,-692.17,0.00013698,2]
[424915163,1781269848000,-500.0,0.00013698,2]
[424915170,1781269848000,-692.17,0.00013698,2]
[424915165,1781269848000,-500.0,0.00013698,2]
[424915159,1781269848000,-500.0,0.00013698,2]
[424915160,1781269848000,-500.0,0.00013698,2]
[424915162,1781269848000,-500.0,0.00013698,2]
[424915161,1781269848000,-500.0,0.00013698,2]
[424915194,1781269848000,-500.0,0.00013699,2]
[424915164,1781269848000,-500.0,0.00013698,2]
[424915173,1781269848000,-692.17,0.00013698,2]
[424915167,1781269848000,-500.0,0.00013698,2]
[424915166,1781269848000,-500.0,0.00013698,2]
[424915169,1781269848000,-692.17,0.00013698,2]
[424915171,1781269848000,-692.17,0.00013698,2]
[424915175,1781269848000,-692.17,0.00013698,2]
[424915174,1781269848000,-692.17,0.00013698,2]
[424915176,1781269848000,-692.17,0.00013698,2]
[424915172,1781269848000,-692.17,0.00013698,2]
[424915168,1781269848000,-500.0,0.00013698,2]
[424915190,1781269848000,-500.0,0.00013699,2]
[424915184,1781269848000,-500.0,0.00013699,2]
[424915199,1781269848000,-510.29040565,0.00013699,2]
[424915218,1781269848000,-736.0,0.00014761,2]
[424915220,1781269848000,-6301.79436577,0.000148,2]
[424915222,1781269848000,-6301.79436575,0.00014811,2]
[424915223,1781269848000,-6301.79436575,0.00014822,2]
[424915221,1781269848000,-1200.0,0.000148,5]
[424915224,1781269848000,-500.0,0.00014833,2]
[424915226,1781269848000,-6301.79436575,0.00014844,2]
[424915228,1781269848000,-233.85297309,0.00014862,2]
[424915225,1781269848000,-6301.79436575,0.00014833,2]
[424915227,1781269848000,-6301.79436575,0.00014856,2]
[424915230,1781269848000,-6301.79436575,0.00014867,2]
[424915229,1781269848000,-360.35654585,0.00014866,2]
[424915233,1781269848000,-6301.79436575,0.00014889,2]
[424915232,1781269848000,-6301.79436575,0.00014878,2]
[424915234,1781269848000,-365.54897488,0.0001489,2]
[424915235,1781269848000,-652.59507377,0.00014899,2]
[424915198,1781269848000,-500.0,0.00013699,2]
[424915217,1781269848000,-321.06,0.00014706,2]
[424915215,1781269848000,-2500.0,0.00014644,2]
[424915231,1781269848000,-500.0,0.00014877,2]
[424915214,1781269848000,-151.0,0.0001463,2]
[424915195,1781269848000,-500.0,0.00013699,2]
[424915219,1781269848000,-1555.5,0.00014765,2]
[424915200,1781269848000,-500.0,0.00013699,2]
[424915201,1781269848000,-500.0,0.00013699,2]
[424915202,1781269848000,-500.0,0.00013699,2]
[424915206,1781269848000,-250.0,0.000142,2]
[424915203,1781269848000,-748.64101858,0.00013712,2]
[424915204,1781269848000,-250.0,0.00014,2]
[424915205,1781269848000,-1200.0,0.000141,5]
[424915207,1781269848000,-2500.0,0.000142,5]
[424915209,1781269848000,-3800.0,0.000143,5]
[424915211,1781269848000,-5100.0,0.000144,5]
[424915210,1781269848000,-40686.51011897,0.000144,2]
[424915216,1781269848000,-1200.0,0.000147,5]
[424915212,1781269848000,-6300.0,0.000145,5]
[424915208,1781269848000,-1500.0,0.00014217,2]
[424915213,1781269848000,-1200.0,0.000146,5]
[424915269,1781269849000,-500.0,0.00014999,2]
[424915276,1781269849000,-500.0,0.00014999,2]
[424915275,1781269849000,-500.0,0.00014999,2]
[424915273,1781269849000,-500.0,0.00014999,2]
[424915267,1781269849000,-500.0,0.00014999,2]
[424915268,1781269849000,-500.0,0.00014999,2]
[424915265,1781269849000,-250.0,0.00014999,2]
[424915263,1781269849000,-2000.0,0.00014999,2]
[424915271,1781269849000,-500.0,0.00014999,2]
[424915266,1781269849000,-500.0,0.00014999,2]
[424915270,1781269849000,-500.0,0.00014999,2]
[424915272,1781269849000,-500.0,0.00014999,2]
[424915283,1781269849000,-500.0,0.00014999,2]
[424915282,1781269849000,-500.0,0.00014999,2]
[424915279,1781269849000,-500.0,0.00014999,2]
[424915277,1781269849000,-500.0,0.00014999,2]
[424915281,1781269849000,-500.0,0.00014999,2]
[424915280,1781269849000,-500.0,0.00014999,2]
[424915284,1781269849000,-500.0,0.00014999,2]
[424915278,1781269849000,-500.0,0.00014999,2]
[424915287,1781269849000,-500.0,0.00014999,2]
[424915286,1781269849000,-500.0,0.00014999,2]
[424915262,1781269849000,-500.0,0.00014999,2]
[424915285,1781269849000,-500.0,0.00014999,2]
[424915274,1781269849000,-500.0,0.00014999,2]
[424915260,1781269849000,-365.54897488,0.0001499,2]
[424915241,1781269849000,-2000.0,0.00014899,2]
[424915264,1781269849000,-500.0,0.00014999,2]
[424915289,1781269849000,-500.0,0.00014999,2]
[424915243,1781269849000,-647918.60703778,0.000149,3]
[424915236,1781269849000,-500.0,0.00014899,2]
[424915238,1781269849000,-500.0,0.00014899,2]
[424915239,1781269849000,-500.0,0.00014899,2]
[424915242,1781269849000,-250.0,0.00014899,2]
[424915237,1781269849000,-390.88,0.00014899,2]
[424915240,1781269849000,-500.0,0.00014899,2]
[424915244,1781269849000,-10000.0,0.000149,2]
[424915249,1781269849000,-6301.79436575,0.000149,2]
[424915245,1781269849000,-2831.59005643,0.000149,2]
[424915261,1781269849000,-500.0,0.00014999,2]
[424915248,1781269849000,-1148.99018714,0.000149,2]
[424915247,1781269849000,-842.69404067,0.000149,3]
[424915253,1781269849000,-291.6690779,0.00014908,2]
[424915255,1781269849000,-652.59507373,0.00014916,2]
[424915251,1781269849000,-652.59507373,0.00014903,2]
[424915252,1781269849000,-652.59507373,0.00014908,2]
[424915254,1781269849000,-652.59507373,0.00014912,2]
[424915250,1781269849000,-1200.0,0.000149,5]
[424915256,1781269849000,-652.59507373,0.00014921,2]
[424915257,1781269849000,-652.59507373,0.00014925,2]
[424915258,1781269849000,-150.0,0.00014985,2]
[424915259,1781269849000,-115976.93829048,0.00014989,2]
[424915246,1781269849000,-5800.0,0.000149,2]
[424915299,1781269849000,-500.0,0.00014999,2]
[424915339,1781269849000,-1683.89549791,0.00015,2]
[424915294,1781269849000,-500.0,0.00014999,2]
[424915318,1781269849000,-500.0,0.00014999,2]
[424915320,1781269849000,-500.0,0.00014999,2]
[424915322,1781269849000,-500.0,0.00014999,2]
[424915324,1781269849000,-500.0,0.00014999,2]
[424915326,1781269849000,-500.0,0.00014999,2]
[424915323,1781269849000,-500.0,0.00014999,2]
[424915328,1781269849000,-500.0,0.00014999,2]
[424915325,1781269849000,-500.0,0.00014999,2]
[424915333,1781269849000,-500.0,0.00014999,2]
[424915329,1781269849000,-500.0,0.00014999,2]
[424915327,1781269849000,-500.0,0.00014999,2]
[424915288,1781269849000,-500.0,0.00014999,2]
[424915331,1781269849000,-500.0,0.00014999,2]
[424915332,1781269849000,-500.0,0.00014999,2]
[424915334,1781269849000,-500.0,0.00014999,2]
[424915335,1781269849000,-647.50203212,0.00014999,2]
[424915336,1781269849000,-300.0,0.00014999,2]
[424915337,1781269849000,-666.0,0.00014999,2]
[424915338,1781269849000,-10079227.02623751,0.00015,2]
[424915340,1781269849000,-465.12928816,0.00015,2]